[Event "Czech Open Rapid G1 2024"]
[Site "Pardubice"]
[Date "2024.07.18"]
[Round "5.26"]
[White "Dovzhenko, Viktor"]
[Black "Karpinets, Andrian"]
[Result "0-1"]
[Annotator "RC"]
[ECO "A13"]
[WhiteElo "2044"]
[BlackElo "1759"]
[PlyCount "86"]
[EventDate "2024.07.16"]
[EventType "swiss"]
[EventCountry "CZE"]
[SourceTitle "playchess.com"]
[Source "ChessBase"]
[SourceQuality "1"]
[TimeControl "1200+10"]

1. g3 {[%emt 0:03:11]} d5 {[%emt 0:00:04]} 2. c4 {[%emt 0:00:11]} e6 {[%emt 0:00:03]} 3. Bg2 {[%emt 0:00:02]} Nf6 {[%emt 0:00:01]} 4. Nf3 {[%emt 0:00:15]} Be7 {[%emt 0:00:01]} 5. d3 {[%emt 0:00:09]} O-O {[%emt 0:00:04]} 6. Nbd2 {[%emt 0:00:09]} c5 {[%emt 0:00:44]} 7. O-O {[%emt 0:00:08]} Nc6 {[%emt 0:00:01]} 8. a3 {[%emt 0:01:11]} a5 {[%emt 0:00:09]} 9. h3 {[%emt 0:01:07]} a4 {[%emt 0:00:11]} 10. b4 {[%emt 0:00:46]} axb3 {[%emt 0:00:01]} 11. Qxb3 {[%emt 0:00:12]} Qc7 {[%emt 0:01:07]} 12. e3 {[%emt 0:00:46]} Bd7 {[%emt 0:06:42]} 13. Rb1 {[%emt 0:00:22]} Rfb8 {[%emt 0:00:01]} 14. Bb2 {[%emt 0:01:32]} Na5 {[%emt 0:00:25]} 15. Qa2 {[%emt 0:00:10]} b5 {[%emt 0:01:24]} 16. Be5 {[%emt 0:00:29]} Bd6 {[%emt 0:00:00]} 17. Bxf6 {[%emt 0:00:05]} gxf6 {[%emt 0:00:01]} 18. cxd5 {[%emt 0:00:04]} c4 {[%emt 0:04:11]} 19. Ne4 {[%emt 0:02:44]} exd5 {[%emt 0:00:58]} 20. Nxf6+ {[%emt 0:00:04]} Kg7 {[%emt 0:00:01]} 21. Nxd5 {[%emt 0:00:02]} Qc5 {[%emt 0:00:34]} 22. Qb2+ {[%emt 0:04:17]} c3 {[%emt 0:00:01]} 23. Nxc3 {[%emt 0:00:06]} Qxa3 {[%emt 0:00:01]} 24. Qd2 {[%emt 0:01:53]} Bb4 {[%emt 0:00:38]} 25. Rxb4 {[%emt 0:00:38]} Qxb4 {[%emt 0:00:01]} 26. Rb1 {[%emt 0:00:03]} Qa3 {[%emt 0:02:40]} 27. Nd4 {[%emt 0:00:11]} Ra6 {[%emt 0:00:14]} 28. Nd5 {[%emt 0:01:51]} Nc6 {[%emt 0:01:47]} 29. e4 {[%emt 0:00:38]} Nxd4 {[%emt 0:00:02]} 30. Qg5+ {[%emt 0:00:01]} Rg6 {[%emt 0:00:00]} 31. Qe5+ {[%emt 0:00:03]} f6 {[%emt 0:00:34]} 32. Qxb8 {[%emt 0:00:08]} Be6 {[%emt 0:01:20]} 33. Nc7 {[%emt 0:00:46]} Bf7 {[%emt 0:00:15]} 34. Ne8+ {[%emt 0:00:58]} Bxe8 {[%emt 0:00:02]} 35. Qxe8 {[%emt 0:00:01]} Qxd3 {[%emt 0:00:13]} 36. Ra1 {[%emt 0:00:10]} Ne2+ {[%emt 0:00:51]} 37. Kh2 {[%emt 0:00:18]} Kh6 {[%emt 0:00:35]} 38. Qf8+ {[%emt 0:00:12]} Kh5 {[%emt 0:00:23]} 39. Ra7 {[%emt 0:00:17]} h6 {[%emt 0:00:00]} 40. Qc5+ {[%emt 0:00:10]} Rg5 {[%emt 0:00:00]} 41. Qe7 {[%emt 0:00:06]} Nxg3 {[%emt 0:00:15]} 42. Ra3 {[%emt 0:00:10]} Nf1+ {[%emt 0:00:22]} 43. Kg1 {[%emt 0:00:24]} Qd1 {[%emt 0:00:10]} 0-1

[Event "Czech Open Rapid G1 2024"]
[Site "Pardubice"]
[Date "2024.07.18"]
[Round "5.27"]
[White "Stocek, Martin"]
[Black "Chaika, Vitalii"]
[Result "1-0"]
[Annotator "RC"]
[ECO "B07"]
[WhiteElo "2110"]
[BlackElo "2111"]
[PlyCount "153"]
[EventDate "2024.07.16"]
[EventType "swiss"]
[EventCountry "CZE"]
[SourceTitle "playchess.com"]
[Source "ChessBase"]
[SourceQuality "1"]
[TimeControl "1200+10"]

1. d4 {[%emt 0:00:02]} d6 {[%emt 0:00:03]} 2. e4 {[%emt 0:00:04]} c6 {[%emt 0:00:01]} 3. Be3 {[%emt 0:00:12]} Nf6 {[%emt 0:00:17]} 4. Nc3 {[%emt 0:00:03]} Qa5 {[%emt 0:00:18]} 5. Bd3 {[%emt 0:00:59]} e5 {[%emt 0:00:03]} 6. f4 {[%emt 0:01:13]} Ng4 {[%emt 0:00:47]} 7. Qd2 {[%emt 0:00:09]} Nxe3 {[%emt 0:00:10]} 8. Qxe3 {[%emt 0:00:20]} Nd7 {[%emt 0:01:07]} 9. Nf3 {[%emt 0:02:41]} Be7 {[%emt 0:00:14]} 10. O-O {[%emt 0:00:35]} O-O {[%emt 0:00:07]} 11. Kh1 {[%emt 0:00:55]} Qb6 {[%emt 0:01:10]} 12. Rab1 {[%emt 0:00:59]} Bf6 {[%emt 0:00:09]} 13. Ne2 {[%emt 0:00:29]} Re8 {[%emt 0:02:36]} 14. c3 {[%emt 0:00:13]} Nf8 {[%emt 0:01:31]} 15. Nd2 {[%emt 0:02:03]} Bg4 {[%emt 0:03:00]} 16. Nc4 {[%emt 0:04:40]} Qc7 {[%emt 0:00:16]} 17. Ng3 {[%emt 0:02:46]} exd4 {[%emt 0:01:16]} 18. cxd4 {[%emt 0:00:06]} b5 {[%emt 0:01:02]} 19. Nd2 {[%emt 0:00:37]} Qb6 {[%emt 0:02:09]} 20. f5 {[%emt 0:00:27]} Qxd4 {[%emt 0:00:33]} 21. Qxd4 {[%emt 0:00:10]} Bxd4 {[%emt 0:00:01]} 22. h3 {[%emt 0:00:02]} Be5 {[%emt 0:00:01]} 23. hxg4 {[%emt 0:01:58]} Bxg3 {[%emt 0:00:02]} 24. Rbc1 {[%emt 0:00:04]} Rac8 {[%emt 0:00:26]} 25. b4 {[%emt 0:00:42]} h6 {[%emt 0:01:11]} 26. Nb3 {[%emt 0:00:23]} Nd7 {[%emt 0:00:38]} 27. Na5 {[%emt 0:00:25]} Ne5 {[%emt 0:00:10]} 28. Be2 {[%emt 0:00:01]} Kf8 {[%emt 0:02:02]} 29. Rc3 {[%emt 0:00:34]} Bh4 {[%emt 0:01:08]} 30. Rfc1 {[%emt 0:00:20]} Bg5 {[%emt 0:01:01]} 31. R1c2 {[%emt 0:00:02]} Bf6 {[%emt 0:00:41]} 32. Bxb5 {[%emt 0:00:01]} Nxg4 {[%emt 0:00:15]} 33. Rxc6 {[%emt 0:00:02]} Rxc6 {[%emt 0:00:20]} 34. Bxc6 {[%emt 0:00:01]} Rb8 {[%emt 0:00:13]} 35. b5 {[%emt 0:00:12]} Bd4 {[%emt 0:00:05]} 36. g3 {[%emt 0:00:20]} Be5 {[%emt 0:00:11]} 37. a4 {[%emt 0:00:35]} h5 {[%emt 0:00:11]} 38. Bd5 {[%emt 0:00:30]} Bxg3 {[%emt 0:00:10]} 39. Nc6 {[%emt 0:00:07]} Rc8 {[%emt 0:00:17]} 40. Rc4 {[%emt 0:00:23]} h4 {[%emt 0:00:30]} 41. e5 {[%emt 0:00:15]} Ne3 {[%emt 0:00:12]} 42. Rd4 {[%emt 0:00:06]} dxe5 {[%emt 0:00:07]} 43. Rd3 {[%emt 0:00:10]} Bf4 {[%emt 0:00:20]} 44. Bf3 {[%emt 0:00:13]} f6 {[%emt 0:00:14]} 45. Rd7 {[%emt 0:00:02]} h3 {[%emt 0:00:11]} 46. Rxa7 {[%emt 0:00:17]} Nf1 {[%emt 0:00:02]} 47. Kg1 {[%emt 0:00:05]} Ng3 {[%emt 0:00:06]} 48. Bg4 {[%emt 0:00:19]} h2+ {[%emt 0:00:08]} 49. Kxh2 {[%emt 0:00:01]} e4 {[%emt 0:00:09]} 50. Kg2 {[%emt 0:00:07]} Re8 {[%emt 0:00:10]} 51. b6 {[%emt 0:00:08]} e3 {[%emt 0:00:09]} 52. b7 {[%emt 0:00:16]} e2 {[%emt 0:00:02]} 53. Bxe2 {[%emt 0:00:01]} Rxe2+ {[%emt 0:00:02]} 54. Kf3 {[%emt 0:00:01]} Bd6 {[%emt 0:00:16]} 55. b8=Q+ {[%emt 0:00:37]} Bxb8 {[%emt 0:00:02]} 56. Nxb8 {[%emt 0:00:02]} Rb2 {[%emt 0:00:01]} 57. Nd7+ {[%emt 0:00:03]} Ke7 {[%emt 0:00:14]} 58. Kxg3 {[%emt 0:00:04]} Kd6 {[%emt 0:00:06]} 59. a5 {[%emt 0:00:18]} Rb5 {[%emt 0:00:29]} 60. Kg4 {[%emt 0:00:20]} g6 {[%emt 0:00:32]} 61. fxg6 {[%emt 0:00:08]} Rg5+ {[%emt 0:00:01]} 62. Kf4 {[%emt 0:00:02]} Rxg6 {[%emt 0:00:01]} 63. Kf5 {[%emt 0:00:07]} Rg5+ {[%emt 0:00:03]} 64. Kxf6 {[%emt 0:00:04]} Rb5 {[%emt 0:00:04]} 65. Nb6 {[%emt 0:00:18]} Kc6 {[%emt 0:00:12]} 66. Ke6 {[%emt 0:00:08]} Rb1 {[%emt 0:00:06]} 67. Nd7 {[%emt 0:00:17]} Re1+ {[%emt 0:00:13]} 68. Ne5+ {[%emt 0:00:02]} Kb5 {[%emt 0:00:02]} 69. Kd6 {[%emt 0:00:21]} Ra1 {[%emt 0:00:24]} 70. Nc6 {[%emt 0:00:17]} Rd1+ {[%emt 0:00:28]} 71. Kc7 {[%emt 0:00:01]} Rh1 {[%emt 0:00:08]} 72. Rb7+ {[%emt 0:00:02]} Kc5 {[%emt 0:00:16]} 73. Nb8 {[%emt 0:00:12]} Ra1 {[%emt 0:00:15]} 74. a6 {[%emt 0:00:02]} Kd5 {[%emt 0:00:09]} 75. a7 {[%emt 0:00:04]} Kc5 {[%emt 0:00:02]} 76. Nd7+ {[%emt 0:00:09]} Kd4 {[%emt 0:00:04]} 77. Nb6 {[%emt 0:00:56]} 1-0

[Event "Czech Open Rapid G1 2024"]
[Site "Pardubice"]
[Date "2024.07.18"]
[Round "5.28"]
[White "Dolensky, Milan"]
[Black "Filindash, Nikita"]
[Result "0-1"]
[Annotator "RC"]
[ECO "B23"]
[WhiteElo "1983"]
[BlackElo "2007"]
[PlyCount "118"]
[EventDate "2024.07.16"]
[EventType "swiss"]
[EventCountry "CZE"]
[SourceTitle "playchess.com"]
[Source "ChessBase"]
[SourceQuality "1"]
[TimeControl "1200+10"]

1. e4 {[%emt 0:00:03]} c5 {[%emt 0:00:00]} 2. Nc3 {[%emt 0:00:01]} d6 {[%emt 0:00:02]} 3. Bb5+ {[%emt 0:00:05]} Bd7 {[%emt 0:00:02]} 4. a4 {[%emt 0:00:12]} Nf6 {[%emt 0:00:01]} 5. f4 {[%emt 0:00:05]} Nc6 {[%emt 0:00:06]} 6. Nf3 {[%emt 0:00:04]} e6 {[%emt 0:00:01]} 7. d3 {[%emt 0:00:03]} Be7 {[%emt 0:00:09]} 8. O-O {[%emt 0:00:03]} Qc7 {[%emt 0:00:05]} 9. Bxc6 {[%emt 0:00:10]} Bxc6 {[%emt 0:00:01]} 10. Qe1 {[%emt 0:00:17]} O-O {[%emt 0:00:16]} 11. b3 {[%emt 0:00:08]} b6 {[%emt 0:00:42]} 12. Bb2 {[%emt 0:00:05]} a6 {[%emt 0:00:02]} 13. e5 {[%emt 0:00:16]} Nd5 {[%emt 0:00:50]} 14. Qg3 {[%emt 0:00:23]} Nxc3 {[%emt 0:00:28]} 15. Bxc3 {[%emt 0:00:03]} d5 {[%emt 0:00:01]} 16. Bd2 {[%emt 0:00:52]} b5 {[%emt 0:00:08]} 17. a5 {[%emt 0:03:07]} Rfd8 {[%emt 0:02:38]} 18. f5 {[%emt 0:00:26]} exf5 {[%emt 0:04:56]} 19. Bh6 {[%emt 0:00:16]} g6 {[%emt 0:00:02]} 20. Ng5 {[%emt 0:00:29]} Qd7 {[%emt 0:09:05]} 21. Rae1 {[%emt 0:00:32]} Bf8 {[%emt 0:00:20]} 22. Qh4 {[%emt 0:00:17]} Be7 {[%emt 0:00:14]} 23. Qg3 {[%emt 0:01:21]} Bf8 {[%emt 0:00:02]} 24. Bxf8 {[%emt 0:00:35]} Rxf8 {[%emt 0:00:02]} 25. e6 {[%emt 0:01:38]} fxe6 {[%emt 0:00:03]} 26. Nxe6 {[%emt 0:00:03]} Rfe8 {[%emt 0:00:07]} 27. Nxc5 {[%emt 0:00:09]} Qa7 {[%emt 0:00:50]} 28. d4 {[%emt 0:00:01]} Qg7 {[%emt 0:00:25]} 29. Ne6 {[%emt 0:01:56]} Qf6 {[%emt 0:00:34]} 30. Qd6 {[%emt 0:01:26]} Rac8 {[%emt 0:00:30]} 31. b4 {[%emt 0:00:30]} Re7 {[%emt 0:00:10]} 32. Re2 {[%emt 0:00:36]} Bd7 {[%emt 0:00:23]} 33. Rfe1 {[%emt 0:00:23]} Rce8 {[%emt 0:00:23]} 34. Re5 {[%emt 0:01:06]} Bxe6 {[%emt 0:01:24]} 35. Qxa6 {[%emt 0:00:03]} Kg7 {[%emt 0:00:07]} 36. Qxb5 {[%emt 0:00:22]} Bf7 {[%emt 0:00:28]} 37. Qe2 {[%emt 0:00:04]} Rxe5 {[%emt 0:00:18]} 38. dxe5 {[%emt 0:00:01]} Qc6 {[%emt 0:00:08]} 39. h3 {[%emt 0:00:20]} d4 {[%emt 0:00:23]} 40. Qd3 {[%emt 0:01:07]} Qd5 {[%emt 0:00:10]} 41. b5 {[%emt 0:00:14]} Rb8 {[%emt 0:00:08]} 42. Rb1 {[%emt 0:00:05]} Qxe5 {[%emt 0:00:02]} 43. a6 {[%emt 0:00:02]} Qc5 {[%emt 0:00:03]} 44. a7 {[%emt 0:00:12]} Qxa7 {[%emt 0:00:02]} 45. b6 {[%emt 0:00:00]} Qd7 {[%emt 0:00:11]} 46. c3 {[%emt 0:00:08]} Qd5 {[%emt 0:00:16]} 47. cxd4 {[%emt 0:00:08]} Qd6 {[%emt 0:00:01]} 48. Qa6 {[%emt 0:00:48]} Qxd4+ {[%emt 0:00:02]} 49. Kh1 {[%emt 0:00:00]} Bd5 {[%emt 0:00:10]} 50. Qa7+ {[%emt 0:00:09]} Rb7 {[%emt 0:00:01]} 51. Qa5 {[%emt 0:00:17]} Bxg2+ {[%emt 0:00:27]} 52. Kxg2 {[%emt 0:00:03]} Qe4+ {[%emt 0:00:01]} 53. Kf2 {[%emt 0:00:06]} Qc2+ {[%emt 0:00:04]} 54. Kg3 {[%emt 0:00:04]} f4+ {[%emt 0:00:03]} 55. Kf3 {[%emt 0:00:05]} Qd3+ {[%emt 0:00:08]} 56. Kf2 {[%emt 0:00:03]} Qxb1 {[%emt 0:00:18]} 57. Qe5+ {[%emt 0:00:01]} Kh6 {[%emt 0:00:02]} 58. Qxf4+ {[%emt 0:00:03]} g5 {[%emt 0:00:01]} 59. Qd6+ {[%emt 0:00:13]} Qg6 {[%emt 0:00:04]} 0-1

[Event "Czech Open Rapid G1 2024"]
[Site "Pardubice"]
[Date "2024.07.18"]
[Round "5.29"]
[White "Garsky, Vladyslav"]
[Black "Tesar, Jan"]
[Result "1-0"]
[Annotator "RC"]
[ECO "B22"]
[WhiteElo "2137"]
[BlackElo "1929"]
[PlyCount "29"]
[EventDate "2024.07.16"]
[EventType "swiss"]
[EventCountry "CZE"]
[SourceTitle "playchess.com"]
[Source "ChessBase"]
[SourceQuality "1"]
[TimeControl "1200+10"]

1. e4 {[%emt 0:00:10]} c5 {[%emt 0:00:10]} 2. Nf3 {[%emt 0:00:10]} e6 {[%emt 0:00:00]} 3. c3 {[%emt 0:00:00]} d6 {[%emt 0:00:00]} 4. d4 {[%emt 0:00:00]} cxd4 {[%emt 0:00:02]} 5. cxd4 {[%emt 0:00:00]} Nf6 {[%emt 0:00:04]} 6. Nc3 {[%emt 0:00:01]} Be7 {[%emt 0:00:02]} 7. Bd3 {[%emt 0:00:06]} O-O {[%emt 0:00:04]} 8. O-O {[%emt 0:00:02]} a6 {[%emt 0:00:15]} 9. Re1 {[%emt 0:00:05]} b5 {[%emt 0:00:10]} 10. e5 {[%emt 0:00:10]} dxe5 {[%emt 0:00:50]} 11. dxe5 {[%emt 0:00:01]} Nd5 {[%emt 0:00:04]} 12. Nxd5 {[%emt 0:00:04]} exd5 {[%emt 0:00:13]} 13. Nd4 {[%emt 0:01:04]} Bd7 {[%emt 0:02:23]} 14. e6 {[%emt 0:03:21]} fxe6 {[%emt 0:00:06]} 15. Qh5 {[%emt 0:00:04]} 1-0

[Event "Czech Open Rapid G1 2024"]
[Site "Pardubice"]
[Date "2024.07.18"]
[Round "5.30"]
[White "Migalko, Dmitriy"]
[Black "Novotny, Dominik"]
[Result "0-1"]
[Annotator "RC"]
[ECO "B12"]
[WhiteElo "1856"]
[BlackElo "1921"]
[PlyCount "42"]
[EventDate "2024.07.16"]
[EventType "swiss"]
[EventCountry "CZE"]
[SourceTitle "playchess.com"]
[Source "ChessBase"]
[SourceQuality "1"]
[TimeControl "1200+10"]

1. e4 {[%emt 0:00:06]} c6 {[%emt 0:00:01]} 2. d4 {[%emt 0:00:20]} d5 {[%emt 0:00:02]} 3. e5 {[%emt 0:00:01]} c5 {[%emt 0:00:03]} 4. c3 {[%emt 0:00:15]} Nc6 {[%emt 0:00:03]} 5. Be3 {[%emt 0:01:03]} Nh6 {[%emt 0:00:09]} 6. dxc5 {[%emt 0:00:34]} Nxe5 {[%emt 0:00:26]} 7. Bxh6 {[%emt 0:00:44]} gxh6 {[%emt 0:00:03]} 8. Qd4 {[%emt 0:00:03]} Ng6 {[%emt 0:00:59]} 9. Nf3 {[%emt 0:00:24]} e5 {[%emt 0:02:50]} 10. Bb5+ {[%emt 0:01:16]} Bd7 {[%emt 0:00:09]} 11. Nxe5 {[%emt 0:00:23]} Bxb5 {[%emt 0:00:47]} 12. Nxg6 {[%emt 0:00:17]} hxg6 {[%emt 0:00:15]} 13. Qxh8 {[%emt 0:00:14]} Qe7+ {[%emt 0:00:04]} 14. Kd2 {[%emt 0:00:17]} Qe2+ {[%emt 0:05:06]} 15. Kc1 {[%emt 0:00:02]} O-O-O {[%emt 0:01:12]} 16. Qd4 {[%emt 0:00:13]} Re8 {[%emt 0:02:43]} 17. Rd1 {[%emt 0:00:48]} h5 {[%emt 0:01:08]} 18. Nd2 {[%emt 0:01:24]} Bh6 {[%emt 0:00:55]} 19. a4 {[%emt 0:01:45]} Bd3 {[%emt 0:01:50]} 20. c6 {[%emt 0:01:08]} Qxd2+ {[%emt 0:00:08]} 21. Rxd2 {[%emt 0:00:14]} Re1# {[%emt 0:00:12]} 0-1

[Event "Czech Open Rapid G1 2024"]
[Site "Pardubice"]
[Date "2024.07.18"]
[Round "5.31"]
[White "Flasar, Jaroslav"]
[Black "Skoloud, Barnabas"]
[Result "1-0"]
[Annotator "RC"]
[ECO "C42"]
[WhiteElo "2012"]
[BlackElo "1914"]
[PlyCount "69"]
[EventDate "2024.07.16"]
[EventType "swiss"]
[EventCountry "CZE"]
[SourceTitle "playchess.com"]
[Source "ChessBase"]
[SourceQuality "1"]
[TimeControl "1200+10"]

1. e4 {[%emt 0:00:02]} e5 {[%emt 0:04:28]} 2. Nf3 {[%emt 0:00:23]} Nf6 {[%emt 0:00:01]} 3. Bc4 {[%emt 0:00:11]} Nxe4 {[%emt 0:00:02]} 4. Nc3 {[%emt 0:00:01]} Nd6 {[%emt 0:01:22]} 5. Bb3 {[%emt 0:00:02]} Nc6 {[%emt 0:00:31]} 6. O-O {[%emt 0:00:06]} Be7 {[%emt 0:00:18]} 7. Re1 {[%emt 0:00:12]} e4 {[%emt 0:00:18]} 8. Nxe4 {[%emt 0:00:48]} Nxe4 {[%emt 0:00:04]} 9. Rxe4 {[%emt 0:00:01]} d5 {[%emt 0:00:17]} 10. Re1 {[%emt 0:00:15]} Bg4 {[%emt 0:00:40]} 11. c3 {[%emt 0:00:04]} Qd7 {[%emt 0:00:47]} 12. d4 {[%emt 0:00:49]} O-O-O {[%emt 0:00:29]} 13. Bc2 {[%emt 0:00:13]} Bd6 {[%emt 0:00:19]} 14. Qd3 {[%emt 0:00:39]} Rhe8 {[%emt 0:02:26]} 15. Bd2 {[%emt 0:00:21]} h6 {[%emt 0:00:09]} 16. a4 {[%emt 0:00:24]} Na5 {[%emt 0:00:59]} 17. b3 {[%emt 0:02:35]} c5 {[%emt 0:00:04]} 18. dxc5 {[%emt 0:00:47]} Bc7 {[%emt 0:01:03]} 19. Nd4 {[%emt 0:00:08]} Nc6 {[%emt 0:02:33]} 20. h3 {[%emt 0:00:19]} Bh5 {[%emt 0:01:35]} 21. Qb5 {[%emt 0:01:00]} Bg6 {[%emt 0:01:59]} 22. Bxg6 {[%emt 0:00:09]} fxg6 {[%emt 0:00:01]} 23. Qd3 {[%emt 0:00:11]} Ne5 {[%emt 0:00:34]} 24. Qc2 {[%emt 0:00:25]} Qf7 {[%emt 0:01:36]} 25. a5 {[%emt 0:02:28]} Rf8 {[%emt 0:00:27]} 26. Be3 {[%emt 0:00:11]} a6 {[%emt 0:00:16]} 27. b4 {[%emt 0:00:02]} Nc4 {[%emt 0:00:07]} 28. b5 {[%emt 0:00:23]} Rde8 {[%emt 0:01:06]} 29. c6 {[%emt 0:00:48]} g5 {[%emt 0:00:05]} 30. cxb7+ {[%emt 0:00:07]} Kxb7 {[%emt 0:00:01]} 31. bxa6+ {[%emt 0:00:05]} Kxa6 {[%emt 0:00:04]} 32. Qa4 {[%emt 0:01:21]} Nxe3 {[%emt 0:00:30]} 33. Qb5+ {[%emt 0:00:02]} Ka7 {[%emt 0:00:02]} 34. Nc6+ {[%emt 0:00:02]} Ka8 {[%emt 0:00:05]} 35. Qa6# {[%emt 0:00:12]} 1-0

[Event "Czech Open Rapid G1 2024"]
[Site "Pardubice"]
[Date "2024.07.18"]
[Round "5.32"]
[White "Eropunov, Gleb"]
[Black "Park, Inchan"]
[Result "1-0"]
[Annotator "RC"]
[ECO "B03"]
[WhiteElo "2190"]
[BlackElo "1856"]
[PlyCount "75"]
[EventDate "2024.07.16"]
[EventType "swiss"]
[EventCountry "CZE"]
[SourceTitle "playchess.com"]
[Source "ChessBase"]
[SourceQuality "1"]
[TimeControl "1200+10"]

1. e4 {[%emt 0:00:02]} Nf6 {[%emt 0:00:03]} 2. e5 {[%emt 0:00:24]} Nd5 {[%emt 0:00:02]} 3. d4 {[%emt 0:00:17]} d6 {[%emt 0:00:02]} 4. Bc4 {[%emt 0:00:12]} Nb6 {[%emt 0:00:01]} 5. Bb3 {[%emt 0:00:02]} g6 {[%emt 0:00:31]} 6. Qf3 {[%emt 0:00:30]} e6 {[%emt 0:00:33]} 7. h4 {[%emt 0:02:18]} dxe5 {[%emt 0:00:43]} 8. dxe5 {[%emt 0:00:03]} Nc6 {[%emt 0:00:16]} 9. Qg3 {[%emt 0:00:36]} Bg7 {[%emt 0:00:24]} 10. Nf3 {[%emt 0:00:10]} Nd4 {[%emt 0:01:49]} 11. Bf4 {[%emt 0:01:21]} Nf5 {[%emt 0:03:32]} 12. Qh2 {[%emt 0:01:52]} Nd5 {[%emt 0:02:29]} 13. Bg5 {[%emt 0:00:28]} Qd7 {[%emt 0:00:01]} 14. g4 {[%emt 0:00:26]} Nfe7 {[%emt 0:00:17]} 15. Nbd2 {[%emt 0:05:37]} h6 {[%emt 0:00:20]} 16. Bf4 {[%emt 0:00:27]} b6 {[%emt 0:04:40]} 17. O-O-O {[%emt 0:01:09]} Nxf4 {[%emt 0:00:12]} 18. Qxf4 {[%emt 0:00:17]} Bb7 {[%emt 0:00:01]} 19. Ne4 {[%emt 0:02:31]} Qc6 {[%emt 0:00:01]} 20. Nf6+ {[%emt 0:01:24]} Bxf6 {[%emt 0:04:34]} 21. exf6 {[%emt 0:00:06]} Nd5 {[%emt 0:00:03]} 22. Bxd5 {[%emt 0:00:29]} exd5 {[%emt 0:00:02]} 23. Rhe1+ {[%emt 0:00:10]} Kf8 {[%emt 0:01:25]} 24. Re7 {[%emt 0:00:05]} Rh7 {[%emt 0:00:32]} 25. Rxc7 {[%emt 0:00:10]} Qe6 {[%emt 0:00:49]} 26. Rxb7 {[%emt 0:00:08]} Rc8 {[%emt 0:00:01]} 27. Nd4 {[%emt 0:00:54]} Qe8 {[%emt 0:00:37]} 28. Qd6+ {[%emt 0:00:28]} Kg8 {[%emt 0:00:01]} 29. Qd7 {[%emt 0:00:17]} Qf8 {[%emt 0:00:21]} 30. Ne6 {[%emt 0:00:09]} Qe8 {[%emt 0:00:10]} 31. Qxe8+ {[%emt 0:00:22]} Rxe8 {[%emt 0:00:01]} 32. Re7 {[%emt 0:00:14]} Rc8 {[%emt 0:00:20]} 33. Nf4 {[%emt 0:00:02]} g5 {[%emt 0:00:06]} 34. Rde1 {[%emt 0:00:09]} Rf8 {[%emt 0:00:18]} 35. Nxd5 {[%emt 0:00:12]} gxh4 {[%emt 0:00:02]} 36. Re8 {[%emt 0:00:03]} h5 {[%emt 0:00:12]} 37. Ne7+ {[%emt 0:00:04]} Kh8 {[%emt 0:00:01]} 38. Rxf8# {[%emt 0:00:01]} 1-0